bitfinex/quotes_SOLUSD_20250522
["timestamp","ask_amount","ask_price","bid_price","bid_amount"]
[1747899384573,28.42086102,176.9,176.84,14.2885829]
[1747899384869,34.07377226,176.9,176.85,14.2885829]
[1747899386386,19.78518936,176.9,176.86,14.2885829]
[1747899387008,19.78518936,176.9,176.81,41.0671]
[1747899387009,5.65259171,176.91,176.88,14.2885829]
[1747899387194,5.65259171,176.91,176.89,14.2885829]
[1747899387488,5.65131393,176.95,176.9,14.2885829]
[1747899387791,5.65131393,176.95,176.91,14.2885829]
[1747899388690,34.06818165,176.95,176.9,14.2885829]
[1747899388874,19.77959875,176.95,176.9,14.2885829]
[1747899389796,5.65131393,176.95,176.94,14.2885829]
[1747899391482,19.7767443,176.98,176.94,14.2885829]
[1747899392194,19.7767443,176.98,176.95,14.2885829]
[1747899393176,5.65035597,176.98,176.97,14.2885829]
[1747899393580,19.77340949,177.01,176.97,14.2885829]
[1747899393800,19.77340949,177.01,177.0,14.2885829]
[1747899393985,19.77340949,177.01,176.93,5.65189277]
[1747899393986,19.77340949,177.01,176.99,14.2885829]
[1747899395206,19.77340949,177.01,176.9,89.80146157]
[1747899395207,19.77340949,177.01,176.93,26.0]
[1747899395409,19.77340949,177.01,176.97,14.2885829]
[1747899397682,34.06199239,177.01,176.95,14.2885829]
[1747899398210,34.06199239,177.01,176.96,14.2885829]
[1747899399389,19.77340949,177.01,176.96,14.2885829]
[1747899401087,19.77340949,177.01,176.97,14.2885829]
[1747899401508,19.77340949,177.01,176.93,31.65188166]
[1747899401805,19.77340949,177.01,176.96,14.2885829]
[1747899403685,34.06199239,177.01,176.93,26.0]
[1747899404009,34.06199239,177.01,176.95,14.2885829]
[1747899404720,34.06199239,177.01,176.96,14.2885829]
[1747899405025,19.77340949,177.01,176.97,14.2885829]
[1747899405386,19.77340949,177.01,176.96,14.2885829]
[1747899406887,19.77340949,177.01,176.97,14.2885829]
[1747899407308,34.06199239,177.01,176.96,14.2885829]
[1747899407504,5.64939833,177.01,176.98,14.2885829]
[1747899407707,5.64939833,177.01,176.99,14.2885829]
[1747899407903,5.64812199,177.05,177.0,14.2885829]
[1747899408094,19.76842698,177.05,177.0,14.2885829]
[1747899408418,19.76842698,177.05,176.97,26.0]
[1747899408707,5.64812199,177.05,177.01,14.2885829]
[1747899408911,19.76842698,177.05,177.0,14.2885829]
[1747899409898,5.64812199,177.05,176.98,26.0]
[1747899410112,5.64812199,177.05,177.02,14.2885829]
[1747899410721,5.64812199,177.05,177.01,14.2885829]
[1747899411015,19.76842698,177.05,177.01,14.2885829]
[1747899412044,20.6771829,177.06,176.98,26.0]
[1747899412045,5.64748404,177.07,177.04,14.2885829]
[1747899412224,5.64652738,177.1,177.06,14.2885829]
[1747899412419,5.64652738,177.1,177.09,14.2885829]
[1747899413102,5.64652738,177.1,177.08,14.2885829]
[1747899413311,14.11592947,177.11,177.09,14.2885829]
[1747899413605,5.64557104,177.13,177.1,14.2885829]
[1747899414600,19.75949866,177.13,177.09,14.2885829]
[1747899415019,19.75949866,177.13,177.08,14.2885829]
[1747899415020,34.04808156,177.13,177.08,14.2885829]
[1747899415410,19.75949866,177.13,177.08,14.2885829]
[1747899417322,19.75949866,177.13,177.09,14.2885829]
[1747899417818,19.75949866,177.13,177.1,14.2885829]
[1747899418416,19.75949866,177.13,177.09,14.2885829]
[1747899419120,19.75949866,177.13,177.1,14.2885829]
[1747899419822,5.64557104,177.13,177.11,14.2885829]
[1747899420001,5.64557104,177.13,177.12,14.2885829]
[1747899420317,5.64557104,177.13,177.11,14.2885829]
[1747899420721,5.64557104,177.13,177.12,14.2885829]
[1747899420898,5.64493367,177.15,177.12,14.2885829]
[1747899421094,19.75726785,177.15,177.12,14.2885829]
[1747899421298,19.75726785,177.15,177.11,14.2885829]
[1747899421500,19.54708785,177.15,177.12,14.2885829]
[1747899421715,19.54708785,177.15,177.08,26.0]
[1747899421999,19.54708785,177.15,177.12,14.2885829]
[1747899422217,5.43475367,177.15,177.14,14.2885829]
[1747899422425,5.64429643,177.17,177.14,14.2885829]
[1747899422633,5.64429643,177.17,177.16,14.2885829]
[1747899422923,5.64365934,177.19,177.16,14.2885829]
[1747899423122,5.64365934,177.19,177.17,14.2885829]
[1747899424037,5.64365934,177.19,177.18,14.2885829]
[1747899424407,5.6423856,177.23,177.18,14.2885829]
[1747899424601,5.6423856,177.23,177.2,14.2885829]
[1747899424845,5.6423856,177.23,177.22,14.2885829]
[1747899425132,14.10573245,177.24,177.22,14.2885829]
[1747899426708,14.10573245,177.24,177.23,14.2885829]
[1747899429336,5.64174894,177.25,177.23,14.2885829]
[1747899429511,5.64174894,177.25,177.24,14.2885829]
[1747899429711,19.74612129,177.25,177.24,14.2885829]
[1747899429912,19.74612129,177.25,177.19,26.0]
[1747899430438,19.74612129,177.25,177.24,14.2885829]
[1747899431256,47.94791656,177.28,177.24,14.2885829]
[1747899434026,47.94791656,177.28,177.18,1.5212]
[1747899434351,47.94791656,177.28,177.24,14.2885829]
[1747899435248,19.74277977,177.28,177.25,14.2885829]
[1747899435554,14.10010345,177.31,177.27,14.2885829]
[1747899435720,14.10010345,177.31,177.23,0.14216157]
[1747899435923,14.10010345,177.31,177.26,14.2885829]
[1747899436173,28.38868635,177.31,177.22,26.0]
[1747899436321,54.38868635,177.31,177.2,73.2]
[1747899436656,14.2885829,177.3,177.25,14.2885829]
[1747899437144,14.2885829,177.3,177.18,39.72946037]
[1747899437457,19.74166619,177.29,177.24,14.2885829]
[1747899437630,19.74166619,177.29,177.25,14.2885829]
[1747899438431,14.2885829,177.27,177.18,27.5212]
[1747899438638,14.2885829,177.27,177.21,14.2885829]
[1747899438836,26.0,177.25,177.21,14.2885829]
[1747899439333,5.64206725,177.24,177.22,14.2885829]
[1747899440142,5.64206725,177.24,177.23,14.2885829]
[1747899440341,5.64206725,177.24,177.18,1.5212]
[1747899440544,5.64206725,177.24,177.22,14.2885829]
[1747899440935,5.64206725,177.24,177.21,14.2885829]
[1747899441339,26.0,177.25,177.23,14.2885829]
[1747899441340,31.64179762,177.25,177.23,14.2885829]
[1747899441548,31.64179762,177.25,177.24,14.2885829]
[1747899441742,5.64147723,177.26,177.24,14.2885829]
[1747899442553,5.64147723,177.26,177.18,7.16491372]
[1747899442748,5.64147723,177.26,177.24,14.2885829]
[1747899442952,5.64147723,177.26,177.23,14.2885829]
[1747899444649,19.74505389,177.26,177.22,14.2885829]
[1747899444858,45.74505389,177.26,177.22,14.2885829]
[1747899445056,45.74505389,177.26,177.23,14.2885829]
[1747899446038,45.74505389,177.26,177.18,1.5212]
[1747899446039,45.74505389,177.26,177.22,14.2885829]
[1747899446332,45.74505389,177.26,177.18,1.5212]
[1747899446527,45.74505389,177.26,177.22,14.2885829]
[1747899448052,45.74505389,177.26,177.23,14.2885829]
[1747899453137,32.93823176,177.25,177.17,7.54647079]
[1747899453355,14.2885829,177.24,177.19,14.2885829]
[1747899453740,18.64964886,177.25,177.19,14.2885829]
[1747899454068,32.93823176,177.25,177.19,14.2885829]
[1747899455268,19.7505784,177.21,177.18,14.2885829]
[1747899456060,5.6423856,177.23,177.2,14.2885829]
[1747899456243,5.64079422,177.28,177.22,14.2885829]
[1747899456438,5.64079422,177.28,177.26,14.2885829]
[1747899456736,31.64079422,177.28,177.26,14.2885829]
[1747899456940,14.10341227,177.27,177.26,14.2885829]
[1747899457940,5.64047605,177.29,177.26,14.2885829]
[1747899458139,5.64047605,177.29,177.27,14.2885829]
[1747899458666,31.64047605,177.29,177.27,14.2885829]
[1747899458836,31.64047605,177.29,177.26,14.2885829]
[1747899459040,45.74166619,177.29,177.25,14.2885829]
[1747899459662,45.74166619,177.29,177.26,14.2885829]
[1747899460249,19.74166619,177.29,177.28,14.2885829]
[1747899460449,19.74166619,177.29,177.26,14.2885829]
[1747899460965,19.74166619,177.29,177.25,14.2885829]
[1747899461475,19.74166619,177.29,177.26,14.2885829]
[1747899462569,5.64047605,177.29,177.28,14.2885829]
[1747899463656,5.63983982,177.31,177.28,14.2885829]
[1747899464363,5.63983982,177.31,177.3,14.2885829]
[1747899465056,5.63983982,177.31,177.29,14.2885829]
[1747899465243,5.63983982,177.31,177.3,14.2885829]
[1747899465775,31.63920374,177.33,177.3,14.2885829]
[1747899465958,31.63920374,177.33,177.31,14.2885829]
[1747899466348,31.63920374,177.33,177.32,14.2885829]
[1747899466548,5.63920374,177.33,177.32,14.2885829]
[1747899467148,5.63920374,177.33,177.26,1.6599]
[1747899467363,19.7372131,177.33,177.3,14.2885829]
[1747899467568,14.09800936,177.33,177.3,14.2885829]
[1747899467963,14.09800936,177.33,177.32,14.2885829]
[1747899468982,14.09800936,177.33,177.31,14.2885829]
[1747899469479,14.09800936,177.33,177.26,1.6599]
[1747899469664,14.09800936,177.33,177.31,14.2885829]
[1747899470673,14.09800936,177.33,177.26,1.6599]
[1747899470871,14.09800936,177.33,177.31,14.2885829]
[1747899471091,14.09800936,177.33,177.32,14.2885829]
[1747899471781,19.73387459,177.36,177.32,14.2885829]
[1747899472781,19.73387459,177.36,177.33,14.2885829]
[1747899473277,19.73387459,177.36,177.34,14.2885829]
[1747899473480,19.73387459,177.36,177.33,14.2885829]
[1747899473676,19.73387459,177.36,177.28,33.84]
[1747899473857,19.73387459,177.36,177.33,14.2885829]
[1747899475280,19.73387459,177.36,177.32,14.2885829]
[1747899479686,19.73387459,177.36,177.33,14.2885829]
[1747899481074,19.73387459,177.36,177.32,14.2885829]
[1747899481555,19.73387459,177.36,177.34,14.2885829]
[1747899481556,5.63824988,177.36,177.34,14.2885829]
[1747899482176,5.63824988,177.36,177.33,14.2885829]
[1747899482670,19.73387459,177.36,177.32,14.2885829]
[1747899482868,19.73387459,177.36,177.28,33.84]
[1747899483074,34.02245749,177.36,177.31,14.2885829]
[1747899483272,19.73387459,177.36,177.32,14.2885829]
[1747899483468,19.73387459,177.36,177.28,33.84]
[1747899483789,19.73387459,177.36,177.32,14.2885829]
[1747899487792,62.21370692,177.36,177.31,14.2885829]
[1747899487987,14.2885829,177.34,177.29,14.2885829]
[1747899488194,40.2885829,177.34,177.29,14.2885829]
[1747899488575,40.2885829,177.34,177.28,14.2885829]
[1747899489180,14.2885829,177.32,177.23,6.407]
[1747899489477,26.0,177.34,177.28,14.2885829]
[1747899489478,14.2885829,177.33,177.28,14.2885829]
[1747899489790,19.73832618,177.32,177.23,40.227]
[1747899489978,19.73832618,177.32,177.28,14.2885829]
[1747899491086,19.73832618,177.32,177.29,14.2885829]
[1747899491307,16.927634,177.45,177.4,3.6306]
[1747899491472,7.23049869,177.51,177.49,26.0]
[1747899491675,2.93579125,177.55,177.46,33.84]
[1747899491989,15.5693883,177.59,177.47,5.63475516]
[1747899492381,15.5693883,177.59,177.5,26.0]
[1747899492578,15.5693883,177.59,177.51,18.79181043]
[1747899492778,15.5693883,177.59,177.54,26.0]
[1747899493178,15.5693883,177.59,177.55,18.79181043]
[1747899493500,15.5693883,177.59,177.57,44.79181043]
[1747899493897,15.5693883,177.59,177.57,50.42339234]
[1747899494079,53.13182453,177.62,177.58,18.79181043]
[1747899494276,53.13182453,177.62,177.57,26.0]
[1747899494480,53.13182453,177.62,177.57,31.63151726]
[1747899494885,53.13182453,177.62,177.58,18.79181043]
[1747899495481,53.13182453,177.62,177.57,31.63151726]
[1747899495682,53.13182453,177.62,177.58,0.14216157]
[1747899495879,53.13182453,177.62,177.57,26.0]
[1747899496177,53.13182453,177.62,177.57,31.6315436]
[1747899496389,53.13182453,177.62,177.58,18.79181043]
[1747899496789,70.84243271,177.66,177.62,18.79181043]
[1747899497000,70.84243271,177.66,177.65,0.14216157]
[1747899497200,70.84243271,177.66,177.63,33.8]
[1747899498090,22.14640735,177.73,177.63,33.8]
[1747899499084,22.14640735,177.71,177.63,33.8]
[1747899499612,19.32725101,177.71,177.63,33.8]
[1747899499778,22.14640735,177.7,177.63,33.8]
[1747899499975,19.69722549,177.69,177.63,33.8]
[1747899500179,22.14640735,177.68,177.63,33.8]
[1747899500481,39.28,177.68,177.58,33.78]
[1747899501394,5.62841222,177.67,177.58,33.78]
[1747899503007,5.62841222,177.67,177.58,39.41108976]
[1747899503376,61.42640735,177.68,177.58,39.41108976]
[1747899503577,44.90826754,177.68,177.58,39.41108976]
[1747899506194,5.62826754,177.68,177.58,39.41108976]
[1747899506799,27.77467489,177.68,177.58,39.41108976]
[1747899508109,5.62746201,177.7,177.59,0.14216157]
[1747899508503,5.62746201,177.7,177.58,39.41108976]
[1747899508695,27.77386936,177.7,177.58,39.41108976]
[1747899508895,22.14640735,177.69,177.58,39.41108976]
[1747899510096,27.7745028,177.68,177.58,39.41108976]
[1747899510618,5.62809545,177.68,177.58,39.41108976]
[1747899511194,41.84474143,177.68,177.58,33.78]
[1747899512018,19.69833408,177.68,177.58,39.4111531]
[1747899514019,41.84474143,177.68,177.58,39.4111531]
[1747899514538,41.84474143,177.68,177.58,33.78]
[1747899514817,22.14640735,177.63,177.56,33.76]
[1747899515024,22.14640735,177.63,177.55,33.76]
[1747899515230,22.14640735,177.63,177.53,5.63276735]
[1747899515418,22.14640735,177.63,177.53,39.39276735]
[1747899515921,14.06566905,177.63,177.53,59.76]
[1747899516122,14.06566905,177.61,177.53,33.76]
[1747899516711,5.63063063,177.6,177.53,33.76]
[1747899517002,5.63063063,177.6,177.52,33.76]
[1747899518108,14.06566905,177.59,177.52,33.76]
[1747899518517,14.06566905,177.55,177.47,18.64964886]
[1747899518818,18.79181043,177.62,177.47,18.64964886]
[1747899518819,54.14762669,177.64,177.5,26.0]
[1747899519025,14.06566905,177.6,177.5,26.0]
[1747899519221,14.06566905,177.58,177.47,59.78]
[1747899519398,14.06566905,177.57,177.47,59.78]
[1747899519605,14.06566905,177.55,177.47,33.78]
[1747899519819,14.06566905,177.55,177.44,71.50272069]
[1747899520222,14.06566905,177.55,177.44,65.41562069]
[1747899520635,14.06566905,177.54,177.44,65.41562069]
[1747899520927,5.63285078,177.53,177.44,65.41562069]
[1747899521114,5.63285078,177.53,177.44,33.78]
[1747899521319,33.78064679,177.53,177.44,33.78]
[1747899522008,19.71497774,177.53,177.49,14.0808497]
[1747899522208,19.71497774,177.53,177.48,14.0808497]
[1747899522514,5.63285078,177.53,177.5,14.0808497]
[1747899522736,5.63285078,177.53,177.51,14.0808497]
[1747899523301,6.2337,177.57,177.52,14.0808497]
[1747899523523,5.63189907,177.56,177.53,14.0808497]
[1747899523718,5.63189907,177.56,177.54,14.0808497]
[1747899523926,5.63189907,177.56,177.53,14.0808497]
[1747899524652,5.63189907,177.56,177.52,14.0808497]
[1747899525136,5.63189907,177.56,177.54,14.0808497]
[1747899525609,5.63189907,177.56,177.53,14.0808497]
[1747899527036,5.63189907,177.56,177.54,14.0808497]
[1747899531133,5.63189907,177.56,177.53,14.0808497]
[1747899531343,5.63189907,177.56,177.54,14.0808497]
[1747899533041,5.63189907,177.56,177.53,14.0808497]
[1747899533245,5.63189907,177.56,177.54,14.0808497]
[1747899533448,5.63189907,177.56,177.55,14.0808497]
[1747899533624,5.63161692,177.57,177.55,14.0808497]
[1747899533824,5.63161692,177.57,177.47,26.0]
[1747899533825,5.63161692,177.57,177.56,14.0808497]
[1747899536529,39.8,177.58,177.56,14.0808497]
[1747899536720,39.8,177.58,177.49,1.5856]
[1747899536721,39.8,177.58,177.57,14.0808497]
[1747899537637,5.63063063,177.6,177.57,14.0808497]
[1747899538211,5.63063063,177.6,177.58,14.0808497]
[1747899538442,5.63063063,177.6,177.59,14.0808497]
[1747899540248,19.7072072,177.6,177.58,14.0808497]
[1747899540741,26.0,177.58,177.51,14.0808497]
[1747899540945,14.0808497,177.57,177.51,14.0808497]
[1747899541147,39.8,177.56,177.51,14.0808497]
[1747899541531,5.63221627,177.55,177.52,14.0808497]
[1747899542344,5.63221627,177.55,177.53,14.0808497]
[1747899542547,5.63221627,177.55,177.51,14.0808497]
[1747899542947,5.63221627,177.55,177.44,96.73528345]
[1747899542948,33.79360666,177.55,177.44,96.73528345]
[1747899543249,14.0808497,177.53,177.47,14.0808497]
[1747899543415,14.0808497,177.52,177.47,14.0808497]
[1747899543621,14.0808497,177.5,177.42,125.87889069]
[1747899543839,14.0808497,177.49,177.44,14.0808497]
[1747899544652,5.63443768,177.48,177.46,14.0808497]
[1747899545018,5.63380281,177.5,177.46,14.0808497]
[1747899545347,5.63380281,177.5,177.47,14.0808497]
[1747899546326,5.63380281,177.5,177.42,131.51516291]
[1747899546545,5.63380281,177.5,177.47,14.0808497]
[1747899546940,45.4334944,177.51,177.48,14.0808497]
[1747899547241,39.8,177.51,177.48,14.0808497]
[1747899547451,5.63324618,177.52,177.5,14.0808497]
[1747899547830,5.63324618,177.52,177.49,14.0808497]
[1747899548628,19.71616641,177.52,177.48,14.0808497]
[1747899548830,19.71616641,177.52,177.47,14.0808497]
[1747899549255,19.71616641,177.52,177.48,14.0808497]
[1747899550251,33.79701611,177.52,177.46,14.0808497]
[1747899550540,5.63324618,177.52,177.5,14.0808497]
[1747899550741,5.63221627,177.55,177.51,14.0808497]
[1747899550922,5.63221627,177.55,177.54,14.0808497]
[1747899552227,5.63221627,177.55,177.53,14.0808497]
[1747899552928,5.63221627,177.55,177.52,14.0808497]
[1747899553257,5.63221627,177.55,177.46,5.63497024]
[1747899553543,19.71275696,177.55,177.5,14.0808497]
[1747899553845,14.0808497,177.54,177.48,14.0808497]
[1747899554057,19.71275696,177.55,177.42,85.18557858]
[1747899554058,5.63316809,177.52,177.42,85.18557858]
[1747899554349,5.63316809,177.52,177.47,14.0808497]
[1747899554350,19.71401779,177.52,177.47,14.0808497]
[1747899555051,33.79693802,177.52,177.42,85.18557858]
[1747899555232,14.0808497,177.49,177.43,14.0808497]
[1747899555553,27.40438832,177.52,177.43,14.0808497]
[1747899555554,14.0808497,177.48,177.43,14.0808497]
[1747899556127,19.71942081,177.49,177.43,14.0808497]
[1747899556333,14.0808497,177.48,177.43,14.0808497]
[1747899556848,14.0808497,177.66,177.52,18.79181043]
[1747899557055,35.43389248,177.67,177.61,14.0808497]
[1747899557258,61.43389248,177.67,177.61,14.0808497]
[1747899557431,76.53389248,177.67,177.61,14.0808497]
[1747899557630,76.53389248,177.67,177.62,22.15154592]
[1747899557631,88.45304278,177.67,177.62,22.15154592]
[1747899557826,88.45304278,177.67,177.61,22.15154592]
[1747899558023,110.6045887,177.67,177.61,22.15154592]
[1747899558828,22.15154592,177.66,177.6,22.15154592]
[1747899559252,122.25304278,177.67,177.62,22.15154592]
[1747899559435,96.25304278,177.67,177.62,22.15154592]
[1747899559632,118.4045887,177.67,177.61,22.15154592]
[1747899559955,22.15154592,177.66,177.6,22.15154592]
[1747899560252,118.4045887,177.67,177.61,22.15154592]
[1747899560847,19.70166056,177.65,177.6,22.15154592]
[1747899561052,19.70166056,177.65,177.61,22.15154592]
[1747899562184,14.07261469,177.65,177.61,22.15154592]
[1747899564257,19.70166056,177.65,177.61,22.15154592]
[1747899564856,19.70166056,177.65,177.53,41.03640211]
[1747899564857,22.15154592,177.64,177.58,22.15154592]
[1747899565462,19.70166056,177.65,177.6,22.15154592]
[1747899565770,19.70166056,177.65,177.61,22.15154592]
[1747899565988,19.70166056,177.65,177.62,22.15154592]
[1747899565989,41.1,177.64,177.62,22.15154592]
[1747899566150,41.1,177.64,177.61,22.15154592]
[1747899566353,5.62967967,177.63,177.61,22.15154592]
[1747899566559,5.62967967,177.63,177.62,22.15154592]
[1747899567370,46.72944898,177.64,177.62,22.15154592]
[1747899567546,46.72944898,177.64,177.63,22.15154592]
[1747899567743,46.72944898,177.64,177.56,31.63178372]
[1747899567950,46.72944898,177.64,177.63,22.15154592]
[1747899577680,46.72944898,177.64,177.63,14.05655843]
[1747899580675,46.72944898,177.64,177.59,109.0]
[1747899580883,60.80285587,177.64,177.63,14.05655843]
[1747899581572,46.72944898,177.64,177.63,14.05655843]
[1747899584588,46.72944898,177.64,177.62,26.0]
[1747899584775,46.72944898,177.64,177.63,14.05655843]
[1747899586884,5.62872903,177.66,177.63,14.05655843]
[1747899587205,39.9,177.69,177.66,26.0]
[1747899587379,39.9,177.69,177.68,14.05655843]
[1747899587881,45.52786607,177.69,177.68,14.05655843]
[1747899588998,59.59731285,177.69,177.64,26.0]
[1747899589300,59.59731285,177.69,177.66,14.05655843]
[1747899589499,59.59731285,177.69,177.65,14.05655843]
[1747899590173,59.59731285,177.69,177.66,14.05655843]
[1747899593090,59.59731285,177.69,177.62,26.0]
[1747899593300,59.59731285,177.69,177.66,14.05655843]
[1747899594598,59.59731285,177.69,177.62,26.0]
[1747899594775,59.59731285,177.69,177.65,14.05655843]
[1747899595099,93.35731285,177.69,177.65,14.05655843]
[1747899595893,93.35731285,177.69,177.62,26.0]
[1747899596096,135.55276485,177.69,177.64,14.05655843]
[1747899597797,14.05655843,177.68,177.6,26.0]
[1747899597986,135.55276485,177.69,177.6,26.0]
[1747899598175,135.55276485,177.69,177.64,14.05655843]
[1747899598578,135.55276485,177.69,177.57,148.92955753]
[1747899598790,135.55276485,177.69,177.64,14.05655843]
[1747899600398,14.05655843,177.68,177.63,14.05655843]
[1747899600593,14.05655843,177.65,177.57,83.0]
[1747899600777,14.05655843,177.64,177.59,14.05655843]
[1747899600977,33.76,177.65,177.61,14.05655843]
[1747899601595,6.4743,177.67,177.61,14.05655843]
[1747899601794,73.64,177.66,177.62,14.05655843]
[1747899602303,19.70131383,177.66,177.64,14.05655843]
[1747899602610,19.70131383,177.66,177.65,14.05655843]
[1747899602988,19.70131383,177.66,177.64,14.05655843]
[1747899603286,14.0725848,177.66,177.64,14.05655843]
[1747899603488,14.0725848,177.66,177.63,14.05655843]
[1747899603682,14.0725848,177.66,177.62,14.05655843]
[1747899603886,14.0725848,177.66,177.59,26.0]
[1747899604094,14.0725848,177.66,177.62,14.05655843]
[1747899604504,14.0725848,177.66,177.63,14.05655843]
[1747899605100,14.0725848,177.66,177.64,14.05655843]
[1747899605295,39.88,177.7,177.65,14.05655843]
[1747899605598,45.50714534,177.71,177.69,14.05655843]
[1747899605921,45.50714534,177.71,177.67,14.05655843]
[1747899605922,59.57500871,177.71,177.67,14.05655843]
[1747899607298,59.57500871,177.71,177.68,14.05655843]
[1747899608313,59.57500871,177.71,177.67,14.05655843]
[1747899609186,87.71073545,177.71,177.62,1.5197]
[1747899609407,87.71073545,177.71,177.67,14.05655843]
[1747899610506,101.76729388,177.71,177.66,14.05655843]
[1747899611310,101.76729388,177.71,177.58,1.6645]
[1747899611311,14.05655843,177.69,177.58,1.6645]
[1747899611494,33.76,177.68,177.63,14.05655843]
[1747899612104,19.69500871,177.71,177.67,14.05655843]
[1747899612290,19.69500871,177.71,177.7,14.05655843]
[1747899612613,14.06786337,177.71,177.7,14.05655843]
[1747899613011,14.06786337,177.71,177.66,26.0]
[1747899613189,14.06786337,177.71,177.68,14.05655843]
[1747899613590,14.06786337,177.71,177.69,14.05655843]
[1747899614227,14.06786337,177.71,177.66,26.0]
[1747899614393,45.50651212,177.73,177.7,14.05655843]
[1747899614597,59.57279243,177.73,177.7,14.05655843]
[1747899615114,59.57279243,177.73,177.65,26.0]
[1747899615323,59.57279243,177.73,177.68,14.05655843]
[1747899615505,73.62935086,177.73,177.68,14.05655843]
[1747899615918,59.57279243,177.73,177.68,14.05655843]
[1747899616115,19.69279243,177.73,177.7,14.05655843]
[1747899616316,59.57279243,177.73,177.7,14.05655843]
[1747899616818,59.57279243,177.73,177.69,14.05655843]
[1747899619624,59.57279243,177.73,177.7,14.05655843]
[1747899621695,19.69279243,177.73,177.71,14.05655843]
[1747899621896,59.13279243,177.73,177.71,14.05655843]
[1747899624620,59.13279243,177.73,177.65,124.61545843]
[1747899624823,59.13279243,177.73,177.71,14.05655843]
[1747899628129,5.62651212,177.73,177.72,14.05655843]
[1747899628334,45.06651212,177.73,177.72,14.05655843]
[1747899628835,5.62651212,177.73,177.72,14.05655843]
[1747899630311,5.62651212,177.73,177.68,26.0]
[1747899630514,5.62651212,177.73,177.72,14.05655843]
[1747899632644,5.62651212,177.73,177.71,14.05655843]
[1747899632814,5.62651212,177.73,177.72,14.05655843]
[1747899635429,5.62651212,177.73,177.65,98.61545843]
[1747899635735,5.62651212,177.73,177.72,14.05655843]
[1747899635935,19.69279243,177.73,177.65,84.5589]
[1747899636232,19.69279243,177.73,177.7,14.05655843]
[1747899636933,19.69279243,177.73,177.65,84.5589]
[1747899637269,33.74935086,177.73,177.6,84.5241]
[1747899637435,33.74935086,177.73,177.68,14.05655843]
[1747899638234,61.88191148,177.73,177.68,14.05655843]
[1747899639337,47.82535305,177.73,177.68,14.05655843]
[1747899640335,47.82535305,177.73,177.69,14.05655843]
[1747899640336,19.69279243,177.73,177.69,14.05655843]
[1747899640525,39.44,177.72,177.7,14.05655843]
[1747899641327,5.62714534,177.71,177.7,14.05655843]
[1747899646044,5.62651212,177.73,177.7,14.05655843]
[1747899646247,5.62651212,177.73,177.72,14.05655843]
[1747899646428,1000.0,177.77,177.72,14.05655843]
[1747899646630,1000.0,177.77,177.76,28.11311686]
[1747899646839,771.76932045,177.77,177.76,29.77951686]
[1747899647029,771.76932045,177.77,177.76,29.92167843]
[1747899647226,752.75496508,177.77,177.76,136.1045407]
[1747899647532,727.95336508,177.77,177.76,162.1045407]
[1747899647732,725.00536508,177.77,177.76,162.1045407]
[1747899648152,686.10680829,177.77,177.76,278.07759073]
[1747899648328,683.60680829,177.77,177.76,278.07759073]
[1747899648654,664.92887222,177.77,177.76,278.07759073]
[1747899648834,650.87489415,177.77,177.76,278.07759073]
[1747899649251,628.32091608,177.77,177.76,278.07759073]
[1747899649464,437.0621055,177.77,177.76,278.07759073]
[1747899649638,435.2921055,177.77,177.76,278.07759073]
[1747899649828,421.23812743,177.77,177.76,278.07759073]
[1747899650028,406.94394926,177.77,177.76,278.07759073]
[1747899650239,392.88997119,177.77,177.76,278.07759073]
[1747899650446,387.80997119,177.77,177.76,278.07759073]
[1747899650657,241.37026641,177.77,177.76,195.07759073]
[1747899650838,227.31865859,177.77,177.76,195.07759073]
[1747899651261,225.29865859,177.77,177.76,195.07759073]
[1747899651443,211.24705077,177.77,177.76,195.07759073]
[1747899651750,117.74705077,177.77,177.76,195.07759073]
[1747899652123,6.8150347,177.89,177.86,86.51013466]
[1747899652432,6.8150347,177.89,177.83,18.79181043]
[1747899652433,8.81023987,178.09,178.0,26.0]
[1747899652755,8.81023987,178.09,178.08,14.05655843]
[1747899653046,1.6087,178.17,178.08,14.05655843]
[1747899653047,1.6087,178.17,178.1,26.0]
[1747899653353,19.63975084,178.21,178.11,59.74]
[1747899653554,19.63975084,178.21,178.17,14.05655843]
[1747899653720,22.0167025,178.2,178.14,22.0167025]
[1747899653926,19.63975084,178.21,178.16,22.0167025]
[1747899654158,19.63975084,178.21,178.11,59.74]
[1747899654457,19.63975084,178.21,178.16,22.0167025]
[1747899654758,22.0167025,178.18,178.12,22.0167025]
[1747899655130,47.69653777,178.21,178.02,4.42261555]
[1747899655327,47.69653777,178.21,178.12,22.0167025]
[1747899655328,22.0167025,178.18,178.12,22.0167025]
[1747899655637,22.0167025,178.16,178.06,26.0]
[1747899655839,22.0167025,178.14,178.08,22.0167025]
[1747899656244,5.6138775,178.13,178.08,22.0167025]
[1747899656741,5.6138775,178.13,178.1,26.0]
[1747899657041,5.6138775,178.13,178.11,22.0167025]
[1747899657243,5.6138775,178.13,178.1,26.0]
[1747899658368,19.64526267,178.16,178.07,33.72]